[Event "Titled Tuesday Blitz February 28 Early 2023"]
[White "Diaz Perez, Michel Alejandro"]
[Black "Lopez Del Alamo, Antonio"]
[WhiteFideId "3517179"]
[BlackFideId "2227339"]
[WhiteElo "2333"]
[BlackElo "2175"]
[Result "1-0"]
[Round "05"]
[TimeControl "180+2"]
[Date "2023.02.28"]
[WhiteClock "0:00:32"]
[BlackClock "0:00:16"]

1. Nf3 {[%clk 0:03:00]}  g6 {[%clk 0:02:59]} 2. e4 {[%clk 0:02:57]}  Bg7 {[%clk 0:02:58]} 3. d4 {[%clk 0:02:56]}  c5 {[%clk 0:02:57]} 4. c3 {[%clk 0:02:55]}  cxd4 {[%clk 0:02:44]} 5. cxd4 {[%clk 0:02:53]}  d5 {[%clk 0:02:44]} 6. exd5 {[%clk 0:02:51]}  Nf6 {[%clk 0:02:44]} 7. Nc3 {[%clk 0:02:49]}  O-O {[%clk 0:02:44]} 8. Qb3 {[%clk 0:02:47]}  Nbd7 {[%clk 0:02:40]} 9. d6 {[%clk 0:02:41]}  e6 {[%clk 0:02:35]} 10. h3 {[%clk 0:02:24]}  Nb6 {[%clk 0:02:27]} 11. Bf4 {[%clk 0:02:23]}  Nbd5 {[%clk 0:01:59]} 12. Bh2 {[%clk 0:02:21]}  a6 {[%clk 0:01:59]} 13. a4 {[%clk 0:02:16]}  Re8 {[%clk 0:01:42]} 14. Be2 {[%clk 0:02:14]}  Bf8 {[%clk 0:01:43]} 15. O-O {[%clk 0:02:01]}  Bxd6 {[%clk 0:01:42]} 16. Ne5 {[%clk 0:02:02]}  Nxc3 {[%clk 0:01:01]} 17. bxc3 {[%clk 0:02:00]}  Qc7 {[%clk 0:01:01]} 18. Bg3 {[%clk 0:01:48]}  Nd7 {[%clk 0:00:50]} 19. f4 {[%clk 0:01:19]}  Nf6 {[%clk 0:00:49]} 20. Bf3 {[%clk 0:01:17]}  Nd5 {[%clk 0:00:45]} 21. c4 {[%clk 0:01:04]}  Ne7 {[%clk 0:00:45]} 22. Be4 {[%clk 0:00:50]}  Nf5 {[%clk 0:00:41]} 23. Bxf5 {[%clk 0:00:40]}  exf5 {[%clk 0:00:41]} 24. Rac1 {[%clk 0:00:37]}  Bf8 {[%clk 0:00:35]} 25. c5 {[%clk 0:00:34]}  Rd8 {[%clk 0:00:27]} 26. Rfd1 {[%clk 0:00:34]}  Be6 {[%clk 0:00:23]} 27. d5 {[%clk 0:00:34]}  Bxc5+ {[%clk 0:00:19]} 28. Kh2 {[%clk 0:00:34]}  Bc8 {[%clk 0:00:18]} 29. d6 {[%clk 0:00:33]}  Qb6 {[%clk 0:00:16]} 30. Qxf7+ {[%clk 0:00:32]} 1-0


[Site "https://www.chess.com"]

[Event "Titled Tuesday Blitz February 28 Early 2023"]
[White "Yilmaz, Mustafa"]
[Black "Burke, John F"]
[WhiteFideId "6302718"]
[BlackFideId "2052970"]
[WhiteElo "2523"]
[BlackElo "2239"]
[Result "1-0"]
[Round "05"]
[TimeControl "180+2"]
[Date "2023.02.28"]
[WhiteClock "0:00:10"]
[BlackClock "0:00:52"]

1. d4 {[%clk 0:02:57]}  Nf6 {[%clk 0:02:56]} 2. c4 {[%clk 0:02:58]}  c5 {[%clk 0:02:56]} 3. d5 {[%clk 0:02:58]}  e6 {[%clk 0:02:56]} 4. Nc3 {[%clk 0:02:58]}  exd5 {[%clk 0:02:57]} 5. cxd5 {[%clk 0:02:58]}  d6 {[%clk 0:02:57]} 6. e4 {[%clk 0:02:59]}  g6 {[%clk 0:02:58]} 7. f4 {[%clk 0:02:59]}  Bg7 {[%clk 0:02:58]} 8. Bb5+ {[%clk 0:02:59]}  Nfd7 {[%clk 0:02:52]} 9. a4 {[%clk 0:02:59]}  O-O {[%clk 0:02:52]} 10. Nf3 {[%clk 0:02:59]}  a6 {[%clk 0:02:52]} 11. Be2 {[%clk 0:02:52]}  Re8 {[%clk 0:02:45]} 12. O-O {[%clk 0:02:51]}  Qc7 {[%clk 0:02:45]} 13. Be3 {[%clk 0:02:46]}  Nf6 {[%clk 0:02:43]} 14. Nd2 {[%clk 0:02:45]}  Nbd7 {[%clk 0:02:40]} 15. Bf3 {[%clk 0:02:39]}  Rb8 {[%clk 0:02:38]} 16. g4 {[%clk 0:02:17]}  Nb6 {[%clk 0:02:21]} 17. Bf2 {[%clk 0:02:02]}  h5 {[%clk 0:02:17]} 18. gxh5 {[%clk 0:01:48]}  Nxh5 {[%clk 0:02:15]} 19. Bxh5 {[%clk 0:01:48]}  gxh5 {[%clk 0:02:16]} 20. Qxh5 {[%clk 0:01:48]}  Nd7 {[%clk 0:02:11]} 21. Bh4 {[%clk 0:01:25]}  Nf6 {[%clk 0:02:05]} 22. Bxf6 {[%clk 0:01:25]}  Bxf6 {[%clk 0:02:04]} 23. Kh1 {[%clk 0:01:19]}  Kf8 {[%clk 0:02:04]} 24. e5 {[%clk 0:01:17]}  dxe5 {[%clk 0:02:03]} 25. Nde4 {[%clk 0:01:18]}  Bg7 {[%clk 0:01:52]} 26. f5 {[%clk 0:01:11]}  f6 {[%clk 0:01:45]} 27. d6 {[%clk 0:01:08]}  Qf7 {[%clk 0:01:43]} 28. Qh7 {[%clk 0:00:45]}  Bd7 {[%clk 0:01:31]} 29. Nxc5 {[%clk 0:00:38]}  Bc6+ {[%clk 0:01:31]} 30. Kg1 {[%clk 0:00:37]}  Rbd8 {[%clk 0:01:24]} 31. Ne6+ {[%clk 0:00:17]}  Rxe6 {[%clk 0:01:22]} 32. fxe6 {[%clk 0:00:18]}  Qxe6 {[%clk 0:01:20]} 33. Qf5 {[%clk 0:00:17]}  Qxf5 {[%clk 0:01:16]} 34. Rxf5 {[%clk 0:00:17]}  Rxd6 {[%clk 0:01:16]} 35. Re1 {[%clk 0:00:16]}  Ke7 {[%clk 0:01:16]} 36. Rh5 {[%clk 0:00:15]}  Ke6 {[%clk 0:01:08]} 37. Rh7 {[%clk 0:00:12]}  Bf8 {[%clk 0:01:06]} 38. Re2 {[%clk 0:00:11]}  Rd4 {[%clk 0:01:05]} 39. Kf1 {[%clk 0:00:09]}  Bc5 {[%clk 0:01:02]} 40. Rh6 {[%clk 0:00:07]}  Rf4+ {[%clk 0:00:59]} 41. Ke1 {[%clk 0:00:08]}  Rg4 {[%clk 0:00:57]} 42. h4 {[%clk 0:00:07]}  Kf5 {[%clk 0:00:55]} 43. Rh5+ {[%clk 0:00:07]}  Kg6 {[%clk 0:00:55]} 44. Rh8 {[%clk 0:00:07]}  e4 {[%clk 0:00:55]} 45. Rg8+ {[%clk 0:00:07]}  Kf5 {[%clk 0:00:55]} 46. Rxg4 {[%clk 0:00:08]}  Kxg4 {[%clk 0:00:56]} 47. Nxe4 {[%clk 0:00:09]}  Bb4+ {[%clk 0:00:53]} 48. Nc3 {[%clk 0:00:08]}  Kxh4 {[%clk 0:00:53]} 49. Kd2 {[%clk 0:00:07]}  Bxa4 {[%clk 0:00:52]} 50. Re4+ {[%clk 0:00:07]}  Kg5 {[%clk 0:00:51]} 51. Rxb4 {[%clk 0:00:08]}  Bc6 {[%clk 0:00:51]} 52. Rd4 {[%clk 0:00:07]}  f5 {[%clk 0:00:52]} 53. Rd8 {[%clk 0:00:08]}  f4 {[%clk 0:00:52]} 54. Rg8+ {[%clk 0:00:08]}  Kf5 {[%clk 0:00:53]} 55. Rf8+ {[%clk 0:00:09]}  Kg4 {[%clk 0:00:53]} 56. Ne2 {[%clk 0:00:09]}  f3 {[%clk 0:00:53]} 57. Nd4 {[%clk 0:00:09]}  Kg3 {[%clk 0:00:52]} 58. Ke3 {[%clk 0:00:10]}  f2 {[%clk 0:00:52]} 59. Rg8+ {[%clk 0:00:09]}  Kh2 {[%clk 0:00:52]} 60. Kxf2 {[%clk 0:00:10]}  Kh3 {[%clk 0:00:52]} 61. Nxc6 {[%clk 0:00:09]}  bxc6 {[%clk 0:00:52]} 62. Rg6 {[%clk 0:00:10]} 1-0


[Site "https://www.chess.com"]

[Event "Titled Tuesday Blitz February 28 Early 2023"]
[White "Lehtosaari, Mauri"]
[Black "Demchenko, Anton"]
[WhiteFideId "501999"]
[BlackFideId "4160258"]
[WhiteElo "2529"]
[BlackElo "2545"]
[Result "0-1"]
[Round "05"]
[TimeControl "180+2"]
[Date "2023.02.28"]
[WhiteClock "0:00:04"]
[BlackClock "0:00:02"]

1. d4 {[%clk 0:03:00]}  d5 {[%clk 0:02:59]} 2. Nf3 {[%clk 0:02:54]}  Nf6 {[%clk 0:02:58]} 3. Bg5 {[%clk 0:02:51]}  Ne4 {[%clk 0:02:57]} 4. Bf4 {[%clk 0:02:50]}  c5 {[%clk 0:02:48]} 5. e3 {[%clk 0:02:49]}  Qb6 {[%clk 0:02:45]} 6. Nc3 {[%clk 0:02:48]}  Nxc3 {[%clk 0:02:44]} 7. bxc3 {[%clk 0:02:48]}  c4 {[%clk 0:02:41]} 8. Be2 {[%clk 0:02:40]}  e6 {[%clk 0:02:39]} 9. O-O {[%clk 0:02:36]}  Nc6 {[%clk 0:02:36]} 10. e4 {[%clk 0:02:34]}  Be7 {[%clk 0:02:33]} 11. e5 {[%clk 0:02:17]}  Qa5 {[%clk 0:02:32]} 12. Qd2 {[%clk 0:02:16]}  h6 {[%clk 0:02:30]} 13. a4 {[%clk 0:02:09]}  b6 {[%clk 0:02:28]} 14. Rfb1 {[%clk 0:02:03]}  Bd7 {[%clk 0:02:28]} 15. h3 {[%clk 0:02:01]}  Qa6 {[%clk 0:02:27]} 16. Bg3 {[%clk 0:01:36]}  O-O-O {[%clk 0:02:20]} 17. Bh4 {[%clk 0:01:26]}  g5 {[%clk 0:02:08]} 18. Bg3 {[%clk 0:01:25]}  Rdg8 {[%clk 0:02:08]} 19. Nh2 {[%clk 0:01:19]}  h5 {[%clk 0:02:02]} 20. Nf1 {[%clk 0:01:17]}  Rg7 {[%clk 0:01:35]} 21. Qd1 {[%clk 0:01:07]}  Rgh7 {[%clk 0:01:34]} 22. Ne3 {[%clk 0:01:03]}  Na5 {[%clk 0:01:33]} 23. f3 {[%clk 0:00:55]}  Bc6 {[%clk 0:01:32]} 24. Nf1 {[%clk 0:00:49]}  Qb7 {[%clk 0:01:32]} 25. Qd2 {[%clk 0:00:48]}  Qd7 {[%clk 0:01:31]} 26. Bf2 {[%clk 0:00:48]}  Bxa4 {[%clk 0:01:26]} 27. Rb2 {[%clk 0:00:38]}  b5 {[%clk 0:01:19]} 28. Rba2 {[%clk 0:00:34]}  Nc6 {[%clk 0:01:15]} 29. Qc1 {[%clk 0:00:32]}  Nb8 {[%clk 0:01:13]} 30. Qb1 {[%clk 0:00:30]}  Qc6 {[%clk 0:01:11]} 31. Ne3 {[%clk 0:00:28]}  Nd7 {[%clk 0:01:10]} 32. Nd1 {[%clk 0:00:27]}  Nb6 {[%clk 0:01:09]} 33. Nb2 {[%clk 0:00:27]}  Kc7 {[%clk 0:00:55]} 34. Qc1 {[%clk 0:00:25]}  Rg7 {[%clk 0:00:54]} 35. Qe1 {[%clk 0:00:21]}  a6 {[%clk 0:00:51]} 36. Qc1 {[%clk 0:00:20]}  Kb7 {[%clk 0:00:50]} 37. Qb1 {[%clk 0:00:18]}  Ka7 {[%clk 0:00:49]} 38. Qc1 {[%clk 0:00:18]}  Rhg8 {[%clk 0:00:45]} 39. Qd2 {[%clk 0:00:16]}  Kb7 {[%clk 0:00:42]} 40. Qc1 {[%clk 0:00:15]}  Kc8 {[%clk 0:00:43]} 41. Qb1 {[%clk 0:00:15]}  Kd7 {[%clk 0:00:43]} 42. Qc1 {[%clk 0:00:16]}  Bd8 {[%clk 0:00:41]} 43. Qd2 {[%clk 0:00:16]}  Ke8 {[%clk 0:00:42]} 44. Qc1 {[%clk 0:00:16]}  Rg6 {[%clk 0:00:41]} 45. Qd2 {[%clk 0:00:16]}  Be7 {[%clk 0:00:41]} 46. Qc1 {[%clk 0:00:16]}  f6 {[%clk 0:00:31]} 47. exf6 {[%clk 0:00:14]}  Bxf6 {[%clk 0:00:32]} 48. Qe3 {[%clk 0:00:13]}  Kf7 {[%clk 0:00:30]} 49. Bd1 {[%clk 0:00:12]}  Qd6 {[%clk 0:00:28]} 50. Qe1 {[%clk 0:00:11]}  Qd7 {[%clk 0:00:21]} 51. Bg3 {[%clk 0:00:11]}  Be7 {[%clk 0:00:21]} 52. Be5 {[%clk 0:00:10]}  Bd6 {[%clk 0:00:21]} 53. Qe3 {[%clk 0:00:07]}  Qc7 {[%clk 0:00:18]} 54. Bxd6 {[%clk 0:00:06]}  Qxd6 {[%clk 0:00:18]} 55. Qe1 {[%clk 0:00:07]}  Qf4 {[%clk 0:00:16]} 56. Qf2 {[%clk 0:00:06]}  Kg7 {[%clk 0:00:16]} 57. Qe1 {[%clk 0:00:06]}  Kh8 {[%clk 0:00:17]} 58. Qf2 {[%clk 0:00:06]}  Qf5 {[%clk 0:00:15]} 59. Rc1 {[%clk 0:00:05]}  Rf6 {[%clk 0:00:14]} 60. Qe3 {[%clk 0:00:02]}  Qf4 {[%clk 0:00:14]} 61. Qxf4 {[%clk 0:00:02]}  gxf4 {[%clk 0:00:15]} 62. Rca1 {[%clk 0:00:03]}  Rfg6 {[%clk 0:00:14]} 63. g4 {[%clk 0:00:03]}  fxg3 {[%clk 0:00:13]} 64. Kg2 {[%clk 0:00:03]}  h4 {[%clk 0:00:13]} 65. Be2 {[%clk 0:00:03]}  Rf6 {[%clk 0:00:13]} 66. Rf1 {[%clk 0:00:04]}  Rgf8 {[%clk 0:00:12]} 67. Nd1 {[%clk 0:00:02]}  Kg7 {[%clk 0:00:10]} 68. Ne3 {[%clk 0:00:03]}  R8f7 {[%clk 0:00:07]} 69. Ng4 {[%clk 0:00:04]}  Rf4 {[%clk 0:00:06]} 70. Ne5 {[%clk 0:00:05]}  Rc7 {[%clk 0:00:05]} 71. Ng4 {[%clk 0:00:04]}  Nd7 {[%clk 0:00:05]} 72. Ne3 {[%clk 0:00:04]}  Nf8 {[%clk 0:00:03]} 73. Ng4 {[%clk 0:00:04]}  Ng6 {[%clk 0:00:03]} 74. Bd1 {[%clk 0:00:03]}  Rf5 {[%clk 0:00:02]} 75. Be2 {[%clk 0:00:04]}  Nf4+ {[%clk 0:00:02]} 0-1


[Site "https://www.chess.com"]

[Event "Titled Tuesday Blitz February 28 Early 2023"]
[White "Lagno, Kateryna"]
[Black "Reprintsev, Alexander"]
[WhiteFideId "14109336"]
[BlackFideId "14100541"]
[WhiteElo "2508"]
[BlackElo "2250"]
[Result "0-1"]
[Round "05"]
[TimeControl "180+2"]
[Date "2023.02.28"]
[WhiteClock "0:00:29"]
[BlackClock "0:00:16"]

1. e4 {[%clk 0:02:57]}  e5 {[%clk 0:02:58]} 2. Nf3 {[%clk 0:02:56]}  Nc6 {[%clk 0:02:58]} 3. Bb5 {[%clk 0:02:57]}  Bc5 {[%clk 0:02:58]} 4. c3 {[%clk 0:02:55]}  f5 {[%clk 0:02:58]} 5. Bxc6 {[%clk 0:02:41]}  dxc6 {[%clk 0:02:44]} 6. Nxe5 {[%clk 0:02:40]}  Qe7 {[%clk 0:02:18]} 7. d4 {[%clk 0:02:36]}  Bd6 {[%clk 0:02:15]} 8. exf5 {[%clk 0:02:27]}  Bxe5 {[%clk 0:02:14]} 9. dxe5 {[%clk 0:02:27]}  Qxe5+ {[%clk 0:02:15]} 10. Qe2 {[%clk 0:02:21]}  Qxe2+ {[%clk 0:02:14]} 11. Kxe2 {[%clk 0:02:22]}  Bxf5 {[%clk 0:02:14]} 12. Rd1 {[%clk 0:02:21]}  Nf6 {[%clk 0:02:05]} 13. h3 {[%clk 0:02:21]}  Nd5 {[%clk 0:02:03]} 14. Kf1 {[%clk 0:02:19]}  O-O-O {[%clk 0:02:02]} 15. Re1 {[%clk 0:02:15]}  Rhe8 {[%clk 0:01:58]} 16. Bd2 {[%clk 0:02:02]}  Bd3+ {[%clk 0:01:57]} 17. Kg1 {[%clk 0:02:02]}  Rxe1+ {[%clk 0:01:56]} 18. Bxe1 {[%clk 0:02:02]}  Nf4 {[%clk 0:01:56]} 19. Nd2 {[%clk 0:01:59]}  c5 {[%clk 0:01:50]} 20. f3 {[%clk 0:01:48]}  Bg6 {[%clk 0:01:40]} 21. Nf1 {[%clk 0:01:36]}  Nd3 {[%clk 0:01:24]} 22. Bh4 {[%clk 0:01:35]}  Re8 {[%clk 0:01:19]} 23. b3 {[%clk 0:01:34]}  Re2 {[%clk 0:01:17]} 24. Bg3 {[%clk 0:01:29]}  a5 {[%clk 0:01:10]} 25. Nh2 {[%clk 0:01:25]}  h5 {[%clk 0:01:04]} 26. Kf1 {[%clk 0:01:04]}  Rc2 {[%clk 0:01:04]} 27. Bh4 {[%clk 0:00:46]}  Rxc3 {[%clk 0:00:58]} 28. g4 {[%clk 0:00:44]}  Rc1+ {[%clk 0:00:56]} 29. Rxc1 {[%clk 0:00:43]}  Nxc1 {[%clk 0:00:56]} 30. f4 {[%clk 0:00:43]}  hxg4 {[%clk 0:00:53]} 31. hxg4 {[%clk 0:00:42]}  Nxa2 {[%clk 0:00:53]} 32. f5 {[%clk 0:00:42]}  Bf7 {[%clk 0:00:53]} 33. Nf3 {[%clk 0:00:42]}  Bxb3 {[%clk 0:00:52]} 34. Be7 {[%clk 0:00:42]}  b6 {[%clk 0:00:51]} 35. Bf8 {[%clk 0:00:43]}  g6 {[%clk 0:00:44]} 36. f6 {[%clk 0:00:37]}  a4 {[%clk 0:00:41]} 37. Ng5 {[%clk 0:00:35]}  a3 {[%clk 0:00:39]} 38. Bg7 {[%clk 0:00:33]}  b5 {[%clk 0:00:30]} 39. Ne4 {[%clk 0:00:31]}  Bf7 {[%clk 0:00:16]} 40. Ng5 {[%clk 0:00:29]}  Bg8 {[%clk 0:00:16]} 41. f7 {[%clk 0:00:28]}  Bxf7 {[%clk 0:00:15]} 42. Nxf7 {[%clk 0:00:29]}  b4 {[%clk 0:00:16]} 43. Ke2 {[%clk 0:00:29]}  Nc3+ {[%clk 0:00:16]} 0-1


[Site "https://www.chess.com"]

[Event "Titled Tuesday Blitz February 28 Early 2023"]
[White "Real_taiatai"]
[Black "Pakleza, Zbigniew"]
[BlackFideId "1119290"]
[WhiteElo "2513"]
[BlackElo "2410"]
[Result "0-1"]
[Round "05"]
[TimeControl "180+2"]
[Date "2023.02.28"]
[WhiteClock "0:00:17"]
[BlackClock "0:00:17"]

1. d4 {[%clk 0:03:00]}  d6 {[%clk 0:02:56]} 2. c4 {[%clk 0:02:59]}  e5 {[%clk 0:02:57]} 3. d5 {[%clk 0:02:55]}  f5 {[%clk 0:02:56]} 4. Nc3 {[%clk 0:02:55]}  Nf6 {[%clk 0:02:56]} 5. Nf3 {[%clk 0:02:48]}  Nbd7 {[%clk 0:02:49]} 6. e4 {[%clk 0:02:45]}  fxe4 {[%clk 0:02:46]} 7. Ng5 {[%clk 0:02:45]}  Nc5 {[%clk 0:02:47]} 8. b4 {[%clk 0:02:43]}  h6 {[%clk 0:02:17]} 9. bxc5 {[%clk 0:02:35]}  hxg5 {[%clk 0:02:17]} 10. Bxg5 {[%clk 0:02:33]}  Be7 {[%clk 0:02:08]} 11. Bxf6 {[%clk 0:02:20]}  gxf6 {[%clk 0:02:06]} 12. Nxe4 {[%clk 0:02:11]}  dxc5 {[%clk 0:01:58]} 13. Be2 {[%clk 0:02:06]}  f5 {[%clk 0:01:54]} 14. Nc3 {[%clk 0:02:02]}  a6 {[%clk 0:01:37]} 15. Bh5+ {[%clk 0:01:47]}  Kf8 {[%clk 0:01:37]} 16. Be2 {[%clk 0:01:48]}  Qd6 {[%clk 0:01:31]} 17. g4 {[%clk 0:01:46]}  e4 {[%clk 0:01:13]} 18. Rc1 {[%clk 0:01:29]}  Rxh2 {[%clk 0:01:08]} 19. Rxh2 {[%clk 0:01:29]}  Qxh2 {[%clk 0:01:09]} 20. gxf5 {[%clk 0:01:25]}  Bxf5 {[%clk 0:01:04]} 21. Qd2 {[%clk 0:01:08]}  Qg1+ {[%clk 0:00:53]} 22. Bf1 {[%clk 0:01:08]}  Bg5 {[%clk 0:00:54]} 23. Qe2 {[%clk 0:01:02]}  Bxc1 {[%clk 0:00:51]} 24. Qh5 {[%clk 0:01:01]}  Bg6 {[%clk 0:00:20]} 25. Qh8+ {[%clk 0:00:59]}  Kf7 {[%clk 0:00:20]} 26. Qxa8 {[%clk 0:00:47]}  e3 {[%clk 0:00:21]} 27. Nd1 {[%clk 0:00:23]}  Bd2+ {[%clk 0:00:20]} 28. Ke2 {[%clk 0:00:22]}  Qg4+ {[%clk 0:00:17]} 29. f3 {[%clk 0:00:17]}  Qxc4# {[%clk 0:00:17]} 0-1


[Site "https://www.chess.com"]

[Event "Titled Tuesday Blitz February 28 Early 2023"]
[White "Eynullayev, Atilla"]
[Black "Ozen, Bahadir"]
[WhiteFideId "13413570"]
[BlackFideId "6337058"]
[WhiteElo "2181"]
[BlackElo "2503"]
[Result "1/2-1/2"]
[Round "05"]
[TimeControl "180+2"]
[Date "2023.02.28"]
[WhiteClock "0:00:11"]
[BlackClock "0:00:34"]

1. d4 {[%clk 0:03:00]}  g6 {[%clk 0:03:00]} 2. c4 {[%clk 0:03:00]}  Bg7 {[%clk 0:03:00]} 3. e4 {[%clk 0:03:00]}  Nc6 {[%clk 0:03:00]} 4. d5 {[%clk 0:02:58]}  Nd4 {[%clk 0:03:00]} 5. Nc3 {[%clk 0:02:57]}  c5 {[%clk 0:03:00]} 6. Nge2 {[%clk 0:02:49]}  e5 {[%clk 0:02:59]} 7. Be3 {[%clk 0:02:46]}  d6 {[%clk 0:02:55]} 8. Qd2 {[%clk 0:02:33]}  f5 {[%clk 0:02:46]} 9. f3 {[%clk 0:02:27]}  Bh6 {[%clk 0:02:27]} 10. Bxh6 {[%clk 0:02:06]}  Qh4+ {[%clk 0:02:26]} 11. Kd1 {[%clk 0:02:07]}  Qxh6 {[%clk 0:02:26]} 12. Nxd4 {[%clk 0:02:02]}  Qxd2+ {[%clk 0:02:14]} 13. Kxd2 {[%clk 0:02:03]}  exd4 {[%clk 0:02:07]} 14. Nb5 {[%clk 0:02:03]}  Kd7 {[%clk 0:02:08]} 15. exf5 {[%clk 0:01:57]}  a6 {[%clk 0:02:08]} 16. fxg6 {[%clk 0:01:54]}  hxg6 {[%clk 0:02:07]} 17. Na3 {[%clk 0:01:55]}  Nf6 {[%clk 0:02:02]} 18. Bd3 {[%clk 0:01:55]}  g5 {[%clk 0:02:01]} 19. Rae1 {[%clk 0:01:47]}  Kd8 {[%clk 0:01:58]} 20. Nb1 {[%clk 0:01:36]}  Bd7 {[%clk 0:01:57]} 21. Kc2 {[%clk 0:01:36]}  Kc7 {[%clk 0:01:52]} 22. Nd2 {[%clk 0:01:36]}  Rag8 {[%clk 0:01:49]} 23. Ne4 {[%clk 0:01:33]}  Nh5 {[%clk 0:01:49]} 24. g3 {[%clk 0:01:29]}  Rh6 {[%clk 0:01:49]} 25. h4 {[%clk 0:00:58]}  g4 {[%clk 0:01:41]} 26. f4 {[%clk 0:00:51]}  Bf5 {[%clk 0:01:41]} 27. Rhg1 {[%clk 0:00:36]}  Re8 {[%clk 0:01:29]} 28. Kd2 {[%clk 0:00:27]}  Ng7 {[%clk 0:01:17]} 29. Nf2 {[%clk 0:00:15]}  Rhh8 {[%clk 0:01:09]} 30. Rxe8 {[%clk 0:00:13]}  Rxe8 {[%clk 0:01:09]} 31. Re1 {[%clk 0:00:11]}  Rxe1 {[%clk 0:01:03]} 32. Kxe1 {[%clk 0:00:12]}  Bxd3 {[%clk 0:01:03]} 33. Nxd3 {[%clk 0:00:13]}  Nf5 {[%clk 0:01:04]} 34. Nf2 {[%clk 0:00:13]}  Nxg3 {[%clk 0:01:03]} 35. Nxg4 {[%clk 0:00:14]}  Kd7 {[%clk 0:01:03]} 36. Kf2 {[%clk 0:00:13]}  Nf5 {[%clk 0:01:04]} 37. h5 {[%clk 0:00:13]}  Ke7 {[%clk 0:01:05]} 38. Kf3 {[%clk 0:00:12]}  b5 {[%clk 0:01:05]} 39. b3 {[%clk 0:00:11]}  Kf7 {[%clk 0:01:05]} 40. a4 {[%clk 0:00:07]}  bxc4 {[%clk 0:01:05]} 41. bxc4 {[%clk 0:00:07]}  a5 {[%clk 0:01:04]} 42. Ke2 {[%clk 0:00:05]}  Ng3+ {[%clk 0:01:04]} 43. Kf3 {[%clk 0:00:04]}  Nxh5 {[%clk 0:01:04]} 44. Nf2 {[%clk 0:00:04]}  Ng7 {[%clk 0:01:03]} 45. Ne4 {[%clk 0:00:05]}  Nf5 {[%clk 0:01:03]} 46. Ng5+ {[%clk 0:00:05]}  Kg6 {[%clk 0:01:04]} 47. Ne6 {[%clk 0:00:05]}  d3 {[%clk 0:01:03]} 48. Ng5 {[%clk 0:00:04]}  Kf6 {[%clk 0:01:02]} 49. Ne4+ {[%clk 0:00:04]}  Ke7 {[%clk 0:01:03]} 50. Nf2 {[%clk 0:00:05]}  d2 {[%clk 0:01:03]} 51. Ke2 {[%clk 0:00:05]}  Nd4+ {[%clk 0:00:58]} 52. Kxd2 {[%clk 0:00:06]}  Kf6 {[%clk 0:00:59]} 53. Ne4+ {[%clk 0:00:06]}  Ke7 {[%clk 0:00:59]} 54. Kd3 {[%clk 0:00:06]}  Nf5 {[%clk 0:00:59]} 55. Nc3 {[%clk 0:00:06]}  Kd7 {[%clk 0:00:59]} 56. Nb5 {[%clk 0:00:07]}  Ke7 {[%clk 0:00:59]} 57. Ke4 {[%clk 0:00:07]}  Ng3+ {[%clk 0:00:59]} 58. Kf3 {[%clk 0:00:08]}  Nf5 {[%clk 0:01:00]} 59. Kg4 {[%clk 0:00:08]}  Ne3+ {[%clk 0:01:00]} 60. Kg5 {[%clk 0:00:09]}  Nxc4 {[%clk 0:01:01]} 61. Kg6 {[%clk 0:00:09]}  Ne3 {[%clk 0:01:00]} 62. f5 {[%clk 0:00:09]}  Nxd5 {[%clk 0:01:00]} 63. Na7 {[%clk 0:00:08]}  c4 {[%clk 0:00:56]} 64. Nc6+ {[%clk 0:00:08]}  Kd7 {[%clk 0:00:56]} 65. Nxa5 {[%clk 0:00:09]}  c3 {[%clk 0:00:57]} 66. Nb3 {[%clk 0:00:09]}  c2 {[%clk 0:00:56]} 67. f6 {[%clk 0:00:09]}  Nxf6 {[%clk 0:00:31]} 68. Kxf6 {[%clk 0:00:09]}  Kc7 {[%clk 0:00:32]} 69. Ke6 {[%clk 0:00:09]}  Kb6 {[%clk 0:00:32]} 70. Kxd6 {[%clk 0:00:10]}  c1=R {[%clk 0:00:32]} 71. Nxc1 {[%clk 0:00:10]}  Ka5 {[%clk 0:00:33]} 72. Nb3+ {[%clk 0:00:11]}  Kxa4 {[%clk 0:00:34]} 1/2-1/2


[Site "https://www.chess.com"]

[Event "Titled Tuesday Blitz February 28 Early 2023"]
[White "Nur, Shahidee Bin Saharan"]
[Black "Belov, Alexei"]
[WhiteFideId "5810973"]
[BlackFideId "4128206"]
[WhiteElo "2746"]
[BlackElo "2504"]
[Result "1-0"]
[Round "05"]
[TimeControl "180+2"]
[Date "2023.02.28"]
[WhiteClock "0:00:10"]
[BlackClock "0:00:58"]

1. e4 {[%clk 0:03:00]}  e6 {[%clk 0:03:00]} 2. d4 {[%clk 0:03:01]}  d5 {[%clk 0:03:00]} 3. Nd2 {[%clk 0:03:02]}  Nf6 {[%clk 0:03:00]} 4. e5 {[%clk 0:03:02]}  Nfd7 {[%clk 0:03:01]} 5. f4 {[%clk 0:03:03]}  c5 {[%clk 0:03:00]} 6. c3 {[%clk 0:03:04]}  Nc6 {[%clk 0:03:00]} 7. Ndf3 {[%clk 0:03:05]}  Qb6 {[%clk 0:03:00]} 8. a3 {[%clk 0:03:05]}  a5 {[%clk 0:02:58]} 9. b3 {[%clk 0:03:05]}  f6 {[%clk 0:02:57]} 10. Bd3 {[%clk 0:03:05]}  Be7 {[%clk 0:02:51]} 11. Ne2 {[%clk 0:03:04]}  O-O {[%clk 0:02:48]} 12. Qc2 {[%clk 0:02:57]}  h6 {[%clk 0:02:32]} 13. Nh4 {[%clk 0:02:28]}  f5 {[%clk 0:02:21]} 14. Ng6 {[%clk 0:02:24]}  Rf7 {[%clk 0:02:15]} 15. Nxe7+ {[%clk 0:02:24]}  Nxe7 {[%clk 0:02:15]} 16. Be3 {[%clk 0:02:24]}  Qc7 {[%clk 0:02:12]} 17. Qd2 {[%clk 0:02:10]}  a4 {[%clk 0:02:08]} 18. b4 {[%clk 0:02:09]}  cxb4 {[%clk 0:01:58]} 19. cxb4 {[%clk 0:02:07]}  Nb6 {[%clk 0:01:55]} 20. Rc1 {[%clk 0:02:06]}  Nc4 {[%clk 0:01:55]} 21. Bxc4 {[%clk 0:01:39]}  dxc4 {[%clk 0:01:55]} 22. Nc3 {[%clk 0:01:40]}  Nd5 {[%clk 0:01:39]} 23. Nb5 {[%clk 0:01:10]}  Qc6 {[%clk 0:01:25]} 24. Nd6 {[%clk 0:01:10]}  Rc7 {[%clk 0:01:24]} 25. Rxc4 {[%clk 0:01:05]}  Qd7 {[%clk 0:01:22]} 26. O-O {[%clk 0:00:55]}  Rxc4 {[%clk 0:01:16]} 27. Nxc4 {[%clk 0:00:56]}  b6 {[%clk 0:01:14]} 28. Rc1 {[%clk 0:00:52]}  Ba6 {[%clk 0:01:11]} 29. Nd6 {[%clk 0:00:52]}  Ra7 {[%clk 0:01:06]} 30. Bf2 {[%clk 0:00:51]}  Rc7 {[%clk 0:01:05]} 31. Rxc7 {[%clk 0:00:12]}  Qxc7 {[%clk 0:01:05]} 32. b5 {[%clk 0:00:13]}  Bc8 {[%clk 0:01:01]} 33. Qd1 {[%clk 0:00:13]}  Bd7 {[%clk 0:00:59]} 34. g3 {[%clk 0:00:11]}  Qc4 {[%clk 0:00:58]} 35. Nxc4 {[%clk 0:00:10]} 1-0


[Site "https://www.chess.com"]